fUST/lending_fUST_20241013
["ID","MTS","AMOUNT","RATE_DAILY","PERIOD"]
[340181382,1728782946522,-530.84883049,0.00034,5]
[340181383,1728782946544,-2697.38872651,0.0003406,2]
[340181384,1728782946620,587.0,0.00029439,2]
[340181385,1728782947084,823.0,0.0003189,2]
[340181386,1728782949138,-2037.8155858,0.0003406,2]
[340181387,1728782949160,-24900.0,0.0003416,2]
[340181388,1728782949181,-209.31869161,0.0003416,7]
[340181389,1728782949203,-1152.0,0.00034544,2]
[340181390,1728782949224,-307.063283,0.00034849,120]
[340181391,1728782949246,-196.324,0.00035626,42]
[340181392,1728782949268,-500.0,0.00035987,15]
[340181393,1728782949290,-500.0,0.00035987,15]
[340181394,1728782949313,-651.84779559,0.00035987,15]
[340181395,1728782949337,-500.0,0.00035987,15]
[340181396,1728782949358,-500.0,0.00035987,15]
[340181397,1728782949379,-500.0,0.00035987,15]
[340181398,1728782949401,-500.0,0.00035987,15]
[340181400,1728782949422,-203.32376541,0.00035987,15]
[340181404,1728782963123,-81.57774707,0.00035987,15]
[340181405,1728782963149,-500.0,0.00035987,15]
[340181406,1728782963172,-500.0,0.00035987,15]
[340181407,1728782963200,-500.0,0.00035987,15]
[340181408,1728782963224,-500.0,0.00035987,15]
[340181409,1728782963248,-500.0,0.00035987,15]
[340181410,1728782963270,-500.0,0.00035987,15]
[340181411,1728782963294,-500.0,0.00035987,15]
[340181412,1728782963319,-500.0,0.00035987,15]
[340181413,1728782963343,-500.0,0.00035987,15]
[340181414,1728782963366,-500.0,0.00035987,15]
[340181415,1728782963388,-500.0,0.00035987,15]
[340181416,1728782963416,-500.0,0.00035987,15]
[340181417,1728782963438,-500.0,0.00035987,15]
[340181418,1728782963460,-400.0,0.00035987,15]
[340181419,1728782963483,-231.33147485,0.00035987,15]
[340181420,1728782963505,-500.0,0.00035987,15]
[340181421,1728782963527,-500.0,0.00035987,15]
[340181422,1728782963548,-500.0,0.00035987,15]
[340181423,1728782963570,-500.0,0.00035987,15]
[340181424,1728782963590,-500.0,0.00035987,15]
[340181425,1728782963612,-500.0,0.00035987,15]
[340181426,1728782963635,-500.0,0.00035987,15]
[340181427,1728782963657,-500.0,0.00035987,15]
[340181428,1728782963680,-500.0,0.00035987,15]
[340181429,1728782963703,-500.0,0.00035987,15]
[340181430,1728782963724,-500.0,0.00035987,15]
[340181431,1728782963748,-500.0,0.00035987,15]
[340181432,1728782963771,-500.0,0.00035987,15]
[340181433,1728782963795,-500.0,0.00035987,15]
[340181434,1728782963820,-500.0,0.00035987,15]
[340181435,1728782963840,-500.0,0.00035987,15]
[340181436,1728782963864,-500.0,0.00035987,15]
[340181437,1728782963887,-500.0,0.00035987,15]
[340181438,1728782963909,-500.0,0.00035987,15]
[340181439,1728782963929,-500.0,0.00035987,15]
[340181440,1728782963950,-500.0,0.00035987,15]
[340181441,1728782963971,-500.0,0.00035987,15]
[340181442,1728782963992,-500.0,0.00035987,15]
[340181443,1728782964015,-500.0,0.00035987,15]
[340181444,1728782964038,-500.0,0.00035987,15]
[340181445,1728782964059,-500.0,0.00035987,15]
[340181446,1728782964083,-500.0,0.00035987,15]
[340181447,1728782964103,-500.0,0.00035987,15]
[340181448,1728782964124,-500.0,0.00035987,15]
[340181449,1728782964144,-500.0,0.00035987,15]
[340181450,1728782964164,-500.0,0.00035987,15]
[340181451,1728782964184,-500.0,0.00035987,15]
[340181452,1728782964204,-500.0,0.00035987,15]
[340181453,1728782964225,-500.0,0.00035987,15]
[340181454,1728782964245,-500.0,0.00035987,15]
[340181455,1728782964267,-500.0,0.00035987,15]
[340181456,1728782964288,-500.0,0.00035987,15]
[340181457,1728782964308,-500.0,0.00035987,15]
[340181458,1728782964333,-500.0,0.00035987,15]
[340181459,1728782964352,-500.0,0.00035987,15]
[340181460,1728782964451,-500.0,0.00035987,15]
[340181461,1728782964472,-500.0,0.00035987,15]
[340181462,1728782964494,-500.0,0.00035987,15]
[340181463,1728782964516,-173.13314748,0.00035987,15]
[340181464,1728782964537,-429.00131259,0.00035987,15]
[340181466,1728782973098,-70.99868741,0.00035987,15]
[340181467,1728782973121,-500.0,0.00035987,15]
[340181468,1728782973144,-500.0,0.00035987,15]
[340181469,1728782973165,-500.0,0.00035987,15]
[340181470,1728782973187,-300.0,0.00035987,15]
[340181471,1728782973209,-14226.7964061,0.00035988,2]
[340181472,1728782973231,-1983.77,0.0003599,10]
[340181473,1728782973252,-5472.31511519,0.00036,30]
[340181474,1728782974102,-3483.28102362,0.00036,30]
[340181479,1728783004376,150.0,0.00025,120]
[340181499,1728783032547,-400.0,0.00035999,2]
[340181500,1728783032556,-6857.96122162,0.00036,30]
[340181544,1728783039165,-439.11302123,0.00036,30]
[340181545,1728783039183,-8857.09318822,0.00036,30]
[340181546,1728783039193,-5078.35058734,0.00036,15]
[340181547,1728783039203,-731.1632,0.00037338,30]
[340181548,1728783039213,-176.16,0.0003749,3]
[340181549,1728783039222,-528.53,0.0003749,3]
[340181550,1728783039232,-244.26,0.0003749,3]
[340181551,1728783039241,-732.82,0.0003749,3]
[340181552,1728783039250,-986.27,0.0003749,10]
[340181553,1728783039260,-310.33284267,0.00037499,15]
[340181554,1728783039271,-387.66147815,0.00037499,15]
[340181555,1728783039281,-586.36713818,0.00037499,15]
[340181556,1728783039291,-157.50842885,0.00037499,15]
[340181557,1728783039301,-648.62254728,0.00037499,15]
[340181558,1728783039311,-500.0,0.00037499,15]
[340181559,1728783039320,-500.0,0.00037499,15]
[340181560,1728783039332,-500.0,0.00037499,15]
[340181561,1728783039342,-500.0,0.00037499,15]
[340181562,1728783039351,-500.0,0.00037499,15]
[340181563,1728783039361,-500.0,0.00037499,15]
[340181564,1728783039370,-248.17545234,0.00037499,15]
[340181565,1728783039381,-177912.99919288,0.000375,120]
[340181566,1728783039391,-35000.0,0.00038,2]
[340181567,1728783039400,-168.259271,0.00038224,2]
[340181568,1728783039412,-560.0,0.00038559,5]
[340181569,1728783039422,-352.32,0.0003886,3]
[340181570,1728783039431,-488.52,0.0003886,3]
[340181571,1728783039441,-151.0,0.00038989,2]
[340181572,1728783039450,-58181.6889267,0.0003899,5]
[340181573,1728783039459,-98385.6394287,0.0003899,5]
[340181574,1728783039468,-26074.19384079,0.00039,2]
[340181575,1728783039478,-1154.59,0.00039,30]
[340181576,1728783039488,-1050.12,0.00039,30]
[340181577,1728783039497,-343.144508,0.0004,2]
[340181578,1728783039507,-9386.1453699,0.0004,10]
[340181579,1728783039517,-153.0,0.00040342,120]
[340181580,1728783039526,-153.0,0.00040342,120]
[340181581,1728783039535,-153.0,0.00040342,120]
[340181582,1728783039544,-153.0,0.00040342,120]
[340181583,1728783039641,-153.0,0.00040342,120]
[340181584,1728783039651,-153.0,0.00040342,120]
[340181585,1728783039660,-153.0,0.00040342,120]
[340181586,1728783039669,-153.0,0.00040342,120]
[340181587,1728783039679,-153.0,0.00040342,120]
[340181588,1728783039688,-153.0,0.00040342,120]
[340181589,1728783039697,-153.0,0.00040342,120]
[340181590,1728783039707,-153.0,0.00040342,120]
[340181591,1728783039716,-153.0,0.00040342,120]
[340181592,1728783039725,-153.0,0.00040342,120]
[340181593,1728783039736,-153.0,0.00040342,120]
[340181594,1728783039745,-153.0,0.00040342,120]
[340181595,1728783039755,-153.0,0.00040342,120]
[340181596,1728783039763,-153.0,0.00040342,120]
[340181597,1728783039772,-153.0,0.00040342,120]
[340181598,1728783039781,-153.0,0.00040342,120]
[340181599,1728783039790,-153.0,0.00040342,120]
[340181600,1728783039799,-153.0,0.00040342,120]
[340181601,1728783039808,-153.0,0.00040342,120]
[340181602,1728783039817,-153.0,0.00040342,120]
[340181603,1728783039826,-153.0,0.00040342,120]
[340181604,1728783039836,-153.0,0.00040342,120]
[340181605,1728783039845,-153.0,0.00040342,120]
[340181606,1728783039854,-153.0,0.00040342,120]
[340181607,1728783039863,-153.0,0.00040342,120]
[340181608,1728783039873,-153.0,0.00040342,120]
[340181609,1728783039882,-153.0,0.00040342,120]
[340181610,1728783039892,-153.0,0.00040342,120]
[340181611,1728783039901,-153.0,0.00040342,120]
[340181612,1728783039910,-153.0,0.00040342,120]
[340181613,1728783039919,-153.0,0.00040342,120]
[340181614,1728783039929,-153.0,0.00040342,120]
[340181615,1728783039939,-153.0,0.00040342,120]
[340181616,1728783039949,-153.0,0.00040342,120]
[340181617,1728783039958,-153.0,0.00040342,120]
[340181618,1728783039967,-153.0,0.00040342,120]
[340181619,1728783039976,-153.0,0.00040342,120]
[340181620,1728783039985,-153.0,0.00040342,120]
[340181621,1728783039994,-153.0,0.00040342,120]
[340181622,1728783040004,-162.53085409,0.00040347,30]
[340181623,1728783040013,-3359.05948038,0.00040569,2]
[340181624,1728783040022,-631.52728531,0.00040569,2]
[340181625,1728783040031,-5850.0,0.000409,45]
[340181626,1728783040041,-153.050756,0.00040978,14]
[340181627,1728783040050,-151.0,0.00040978,14]
[340181628,1728783040060,-151.0,0.00040978,14]
[340181629,1728783040069,-151.0,0.00040978,14]
[340181630,1728783040078,-47006.97932713,0.00040978,26]
[340181631,1728783040088,-12270.40733742,0.00040978,61]
[340181632,1728783040098,-37983.00038759,0.00040978,2]
[340181635,1728783040107,-163.54262327,0.00040978,2]
[340181638,1728783040117,-4127.56548919,0.00040978,2]
[340181641,1728783040127,-10768.56339608,0.00040978,7]
[340181643,1728783040137,-10114.10799158,0.00040978,2]
[340181644,1728783040146,-9847.05766869,0.00040978,2]
[340181645,1728783040155,-1168.12288359,0.00040978,2]
[340181646,1728783040164,-154.54518119,0.00040978,2]
[340181647,1728783040174,-173.80642027,0.00040978,2]
[340181648,1728783040184,-30837.48274162,0.00040978,5]
[340181698,1728783044430,-1524.28,0.0003749,10]
[340181699,1728783044440,-47317.98126798,0.00040978,5]
[340181700,1728783044452,-440.73772549,0.00040978,5]
[340181729,1728783081052,209.211411,0.00035,120]
[340181732,1728783419422,1359.579333,0.00025,120]
[340181736,1728783933137,-293.38293532,0.000252,2]
[340181737,1728783946115,-330.61706468,0.000252,2]
[340181738,1728783946143,-2364.52973373,0.00025278,4]
[340181741,1728784026302,-37.24135331,0.00025278,4]
[340181742,1728784026324,-434.27254362,0.00029,2]
[340181743,1728784032106,-101.3175689,0.00029,2]
[340181744,1728784032129,-174.486477,0.00029019,2]
[340181745,1728784032151,-240.2468965,0.00029371,2]
[340181746,1728784033103,-574.7757785,0.00029371,2]
[340181747,1728784033130,-1192.177637,0.0002946,2]
[340181748,1728784033155,-250.0,0.00029597,2]
[340181749,1728784033177,-1823.9552989,0.00029605,2]
[340181750,1728784033200,-250.0,0.00029678,2]
[340181751,1728784033223,-250.0,0.00029759,2]
[340181752,1728784033247,-250.0,0.0002984,2]
[340181753,1728784033270,-172.2139443,0.00029861,2]
[340181754,1728784033295,-250.0,0.00029921,2]
[340181755,1728784033317,-300.0,0.00029998,2]
[340181756,1728784033340,-300.0,0.00029998,2]
[340181757,1728784033360,-672.58423072,0.00029999,2]
[340181758,1728784033383,-91.23766011,0.0003,30]
[340181759,1728784049143,-408.76233989,0.0003,30]
[340181760,1728784049166,-13.53537212,0.0003,30]
[340181761,1728784051106,-486.46462788,0.0003,30]
[340181762,1728784051132,-113.3705519,0.00030003,2]
[340181763,1728784095394,155.908,0.00024,2]
[340181773,1728784145130,-158.0,0.0002883,2]
[340181774,1728784145152,-500.0,0.0003,30]
[340181775,1728784145176,-136.6294481,0.00030003,2]
[340181776,1728784145200,-250.0,0.00030084,2]
[340181777,1728784145222,-1192.177637,0.00030145,2]
[340181778,1728784145246,-250.0,0.00030165,2]
[340181779,1728784145269,-250.0,0.00030246,2]
[340181780,1728784145290,-250.0,0.00030327,2]
[340181781,1728784145312,-250.0,0.00030408,2]
[340181782,1728784145333,-250.0,0.0003049,2]
[340181783,1728784145355,-250.0,0.00030571,2]
[340181784,1728784145378,-250.0,0.00030652,2]
[340181785,1728784145401,-250.0,0.00030733,2]
[340181786,1728784145424,-250.0,0.00030814,2]
[340181787,1728784145445,-1192.177637,0.0003083,2]
[340181788,1728784145468,-250.0,0.00030895,2]
[340181789,1728784145490,-250.0,0.00030977,2]
[340181790,1728784145512,-250.0,0.00031058,2]
[340181791,1728784145534,-400.0,0.00031137,2]
[340181792,1728784145554,-400.0,0.00031138,2]
[340181793,1728784145576,-250.0,0.00031139,2]
[340181794,1728784145597,-174.486477,0.00032974,2]
[340181795,1728784145620,-4158.63530544,0.00032981,2]
[340181796,1728784145644,-184.64400087,0.00033067,7]
[340181797,1728784145668,-21051.73446093,0.00033067,2]
[340181798,1728784148131,-3848.26553907,0.00033067,2]
[340181799,1728784148154,-169.797258,0.00033081,2]
[340181800,1728784148175,-500.0,0.00033373,5]
[340181801,1728784148199,-500.0,0.00033383,7]
[340181802,1728784148221,-644.44874119,0.00033383,7]
[340181803,1728784148242,-190.42697368,0.00033383,7]
[340181804,1728784148264,-500.0,0.00033383,7]
[340181805,1728784148286,-500.0,0.00033383,7]
[340181806,1728784148308,-360.90838359,0.00033383,7]
[340181807,1728784148330,-363.13230003,0.00033383,7]
[340181808,1728784148352,-500.0,0.00033383,7]
[340181809,1728784148374,-500.0,0.00033383,7]
[340181810,1728784148398,-500.0,0.00033383,7]
[340181811,1728784148420,-500.0,0.00033383,7]
[340181812,1728784148442,-300.0,0.00033383,7]
[340181813,1728784148466,-278.95070003,0.00033383,7]
[340181814,1728784148572,-359.56730144,0.00033383,7]
[340181815,1728784148609,-140.43269856,0.00033383,7]
[340181816,1728784148633,-500.0,0.00033383,7]
[340181817,1728784148658,-500.0,0.00033383,7]
[340181818,1728784148680,-500.0,0.00033383,7]
[340181819,1728784148703,-500.0,0.00033383,7]
[340181820,1728784148725,-3471.4587446,0.00033384,2]
[340181821,1728784148751,-560.0,0.00033519,2]
[340181822,1728784148774,-1698.5889116,0.00033762,2]
[340181823,1728784148804,-560.0,0.00034252,2]
[340181824,1728784148829,-237.6693577,0.00034586,2]
[340181825,1728784148855,-339.75094366,0.00034742,5]
[340181826,1728784148878,-211.284,0.00034803,40]
[340181827,1728784148900,-655.91,0.00035,120]
[340181828,1728784149136,156.3,0.00024,2]
[340181829,1728784153187,2232.71643275,0.00034642,2]
[340181830,1728784154139,-783.0,0.00036084,2]
[340181831,1728784154160,-4158.63530542,0.00036376,2]
[340181832,1728784154181,-500.0,0.00036873,5]
[340181833,1728784154202,-502.77133491,0.00036873,5]
[340181834,1728784154223,-504.53927424,0.00036873,5]
[340181835,1728784162787,266.98742605,0.00032877,2]
[340181836,1728784163136,1111.0,0.00034849,120]
[340181837,1728784163506,196.29318817,0.00036822,2]
[340181848,1728784223238,168.259271,0.00036722,2]
[340181874,1728784239234,-892.81909274,0.000378,2]
[340181875,1728784239246,-258.03870099,0.000379,5]
[340181876,1728784239257,-1000.0,0.00038356,2]
[340181877,1728784239268,-400.0,0.00038499,30]
[340181878,1728784239279,-400.0,0.00038499,5]
[340181879,1728784239289,-2500.0,0.000385,35]
[340181880,1728784239300,-1000.0,0.0003863,2]
[340181881,1728784239310,-271.30148262,0.00038795,7]
[340181882,1728784239320,-1000.0,0.00038904,2]
[340181883,1728784239330,-1000.0,0.00039178,2]
[340181884,1728784239341,-1000.0,0.00039452,2]
[340181885,1728784239351,-1000.0,0.00039726,2]
[340181886,1728784239364,-153.0,0.00039848,120]
[340181887,1728784239375,-153.0,0.00039848,120]
[340181888,1728784239386,-153.0,0.00039848,120]
[340181889,1728784239396,-153.0,0.00039848,120]
[340181890,1728784239406,-153.0,0.00039848,120]
[340181891,1728784239415,-153.0,0.00039848,120]
[340181892,1728784239425,-153.0,0.00039849,120]
[340181893,1728784239436,-153.0,0.00039849,120]
[340181894,1728784239445,-153.0,0.00039849,120]
[340181895,1728784239455,-153.0,0.00039849,120]
[340181896,1728784239465,-153.0,0.00039849,120]
[340181897,1728784239475,-153.0,0.00039849,120]
[340181898,1728784239485,-153.0,0.00039849,120]
[340181899,1728784239495,-153.0,0.00039849,120]
[340181900,1728784239504,-153.0,0.00039849,120]
[340181901,1728784239514,-153.0,0.00039849,120]
[340181902,1728784239524,-153.0,0.00039849,120]
[340181903,1728784239534,-153.0,0.00039849,120]
[340181904,1728784239544,-153.0,0.00039849,120]
[340181905,1728784239553,-153.0,0.00039849,120]
[340181906,1728784239564,-153.0,0.00039849,120]
[340181907,1728784239575,-153.0,0.00039849,120]
[340181908,1728784239586,-153.0,0.00039849,120]
[340181909,1728784239596,-153.0,0.00039849,120]
[340181910,1728784239605,-153.0,0.00039849,120]
[340181911,1728784239615,-153.0,0.00039849,120]
[340181912,1728784239624,-153.0,0.00039849,120]
[340181913,1728784239634,-153.0,0.00039849,120]
[340181914,1728784239643,-153.0,0.00039849,120]
[340181915,1728784239653,-153.0,0.00039849,120]
[340181916,1728784239662,-153.0,0.00039849,120]
[340181917,1728784239672,-153.0,0.00039849,120]
[340181918,1728784239683,-153.0,0.00039849,120]
[340181919,1728784239693,-153.0,0.00039849,120]
[340181920,1728784239703,-153.0,0.00039849,120]
[340181921,1728784239712,-153.0,0.00039849,120]
[340181922,1728784239722,-153.0,0.00039849,120]
[340181923,1728784239732,-153.0,0.00039849,120]
[340181924,1728784239741,-153.0,0.00039849,120]
[340181925,1728784239751,-153.0,0.00039849,120]
[340181926,1728784239762,-153.0,0.00039849,120]
[340181927,1728784239774,-153.0,0.00039849,120]
[340181928,1728784239784,-153.0,0.00039849,120]
[340181929,1728784239793,-500.0,0.00039873,5]
[340181930,1728784239803,-304.87059952,0.00039873,5]
[340181931,1728784239813,-506.8318439,0.0003988,5]
[340181932,1728784239822,-500.0,0.000399,5]
[340181933,1728784239832,-350.0,0.0004,120]
[340181934,1728784239841,-359.791891,0.0004,2]
[340181935,1728784239850,-5000.0,0.0004,40]
[340181936,1728784239861,-1000.0,0.0004,2]
[340181937,1728784239872,-166.20734609,0.0004,30]
[340181938,1728784239882,-1000.0,0.00040273,2]
[340181939,1728784239891,-175.64530661,0.00040342,2]
[340181940,1728784239901,-162.53085409,0.00040347,30]
[340181941,1728784239911,-502.39694601,0.0004036,5]
[340181942,1728784239922,-175.6453066,0.00040377,2]
[340181943,1728784239931,-175.6453066,0.00040412,2]
[340181944,1728784239942,-344.08,0.00040422,3]
[340181945,1728784239952,-2685.88,0.00040422,10]
[340181946,1728784239962,-2238.23,0.00040422,10]
[340181947,1728784239973,-1865.2,0.00040422,10]
[340181948,1728784239984,-1554.33,0.00040422,10]
[340181949,1728784239994,-530.99452223,0.0004043,31]
[340181950,1728784240009,-200.0,0.0004043,31]
[340181951,1728784240021,-500.0,0.0004043,31]
[340181952,1728784240032,-500.0,0.0004043,31]
[340181953,1728784240043,-500.0,0.0004043,31]
[340181954,1728784240053,-500.0,0.0004043,31]
[340181955,1728784240064,-500.0,0.0004043,31]
[340181956,1728784240074,-500.0,0.0004043,31]
[340181957,1728784240085,-500.0,0.0004043,31]
[340181958,1728784240095,-374.70526343,0.0004043,31]
[340181959,1728784240105,-383.87753881,0.00040431,31]
[340181960,1728784240115,-546.01951636,0.00040431,31]
[340181961,1728784240126,-177.81235721,0.00040431,31]
[340181962,1728784240136,-348.23589951,0.00040431,31]
[340181963,1728784240147,-219.71308607,0.00040431,31]
[340181964,1728784240156,-176661.7406817,0.00040432,6]
[340181983,1728784241069,-5002.28367552,0.00040432,6]
[340181984,1728784241083,-17531.36714578,0.00040432,6]
[340181985,1728784241093,-62175.15266584,0.00040432,6]
[340182036,1728784244050,-4.32820086,0.00040432,6]
[340182037,1728784244062,-3741.21522322,0.00040432,6]
[340182052,1728784246859,-66.64835331,0.00040422,10]
[340182053,1728784247515,-46.921968,0.00040422,10]
[340182054,1728784281696,11785.66,0.00036,15]
[340182055,1728784307676,522.07580213,0.0002873,2]
[340182056,1728784340643,514.56784731,0.0003,30]
[340182070,1728785138133,-163.39382872,0.000299,2]
[340182071,1728785138160,-300.0,0.00029999,2]
[340182072,1728785138186,-228.90411212,0.0003,7]
[340182073,1728785138207,-500.0,0.0003,30]
[340182074,1728785138232,-819.97053188,0.0003,2]
[340182075,1728785138255,-755.47403382,0.0003,30]
[340182076,1728785138279,-501.43974924,0.0003,30]
[340182077,1728785138302,-500.0,0.0003,30]
[340182078,1728785138324,-519.37639635,0.0003,30]
[340182079,1728785138346,-582.29905893,0.0003,30]
[340182080,1728785138367,-502.40357416,0.0003,30]
[340182081,1728785138389,-163.067114,0.00030365,2]
[340182082,1728785138410,-381.92764968,0.00031093,2]
[340182083,1728785145113,-310.66772332,0.00031093,2]
[340182084,1728785145134,-485.67272448,0.00031097,2]
[340182085,1728785145156,-399.794349,0.00031179,2]
[340182086,1728785145180,-250.0,0.00031287,2]
[340182087,1728785145202,-250.0,0.00031373,2]
[340182088,1728785145224,-250.0,0.00031459,2]
[340182089,1728785145245,-250.0,0.00031545,2]
[340182090,1728785145265,-250.0,0.00031631,2]
[340182091,1728785145286,-250.0,0.00031716,2]
[340182092,1728785145311,-170.539998,0.00031751,2]
[340182093,1728785145331,-163.39382872,0.00031764,2]
[340182094,1728785145352,-170.539998,0.00031769,2]
[340182095,1728785145373,-170.539998,0.00031787,2]
[340182096,1728785145394,-250.0,0.00031802,2]
[340182097,1728785145416,-170.539998,0.00031804,2]
[340182098,1728785145440,-170.539998,0.00031822,2]
[340182099,1728785145462,-170.539998,0.00031839,2]
[340182100,1728785145484,-170.539998,0.00031857,2]
[340182101,1728785145506,-399.794349,0.00031864,2]
[340182102,1728785145527,-157.0,0.0003187,2]
[340182103,1728785145548,-55.44372843,0.00031875,2]
[340182104,1728785229107,-115.09626957,0.00031875,2]
[340182105,1728785229131,-250.0,0.00031888,2]
[340182106,1728785229155,-170.539998,0.00031892,2]
[340182107,1728785229179,-170.539998,0.0003191,2]
[340182108,1728785229206,-250.0,0.00031974,2]
[340182109,1728785229231,-250.0,0.0003206,2]
[340182110,1728785229255,-250.0,0.00032145,2]
[340182111,1728785229280,-250.0,0.00032231,2]
[340182112,1728785229304,-250.0,0.00032317,2]
[340182113,1728785229327,-250.0,0.00032403,2]
[340182114,1728785229350,-88.93788517,0.00032435,2]
[340182115,1728785252129,-74.12922883,0.00032435,2]
[340182116,1728785252152,-250.0,0.00032489,2]
[340182117,1728785252173,-399.794349,0.00032549,2]
[340182118,1728785252195,-250.0,0.00032574,2]
[340182119,1728785252216,-250.0,0.0003266,2]
[340182120,1728785252238,-250.0,0.00032746,2]
[340182121,1728785252259,-250.0,0.00032832,2]
[340182122,1728785252280,-265.69497623,0.00032877,2]
[340182123,1728785252301,-250.0,0.00032918,2]
[340182124,1728785252322,-400.0,0.00032999,2]
[340182125,1728785252343,-400.0,0.00032999,2]
[340182126,1728785252367,-21.76773635,0.00034048,2]
[340182127,1728785309345,500.07,0.00025,2]
[340182131,1728785346113,-3000.0,0.00031676,2]
[340182132,1728785346134,-2794.81596362,0.00034048,2]
[340182133,1728785346155,-173.073431,0.00034206,2]
[340182134,1728785346179,-400.0,0.0003438,2]
[340182135,1728785346202,-400.0,0.0003438,2]
[340182136,1728785346224,-19936.21917275,0.00034382,2]
[340182137,1728785350101,-4963.78082725,0.00034382,2]
[340182138,1728785350126,-262.25716481,0.000344,5]
[340182139,1728785350145,-500.0,0.0003445,5]
[340182140,1728785350165,-500.0,0.0003445,2]
[340182141,1728785350187,-500.0,0.0003445,5]
[340182142,1728785350207,-258.03870099,0.0003445,5]
[340182143,1728785350227,-1154.1588504,0.00034452,2]
[340182144,1728785350249,-163.067114,0.00034505,2]
[340182145,1728785350271,-1111.0,0.00034849,120]
[340182146,1728785350291,-302.42545213,0.00035,2]
[340182147,1728785350312,-302.42545213,0.0003535,2]
[340182148,1728785363129,8677.47784238,0.000343,2]
[340182149,1728785366108,-302.42545213,0.000357,2]
[340182150,1728785366129,-1002.39694601,0.0003582,5]
[340182151,1728785366150,-502.14813535,0.0003582,2]
[340182152,1728785366170,-1007.91682428,0.0003582,5]
[340182153,1728785366191,-302.42545213,0.0003605,2]
[340182154,1728785366213,-217.873,0.00036309,44]
[340182155,1728785366233,-500.0,0.00036399,15]
[340182156,1728785366255,-530.99452223,0.00036399,15]
[340182157,1728785366275,-500.0,0.00036399,15]
[340182158,1728785366295,-596.14642584,0.00036399,15]
[340182159,1728785366316,-239.89039884,0.00036399,15]
[340182160,1728785372226,-260.10960116,0.00036399,15]
[340182161,1728785372249,-500.0,0.00036399,15]
[340182162,1728785372273,-500.0,0.00036399,15]
[340182163,1728785372296,-524.7919962,0.00036399,15]
[340182164,1728785372320,-500.0,0.00036399,15]
[340182165,1728785372341,-516.6496138,0.00036399,15]
[340182166,1728785372364,-500.0,0.00036399,15]
[340182167,1728785372477,-500.0,0.00036399,15]
[340182168,1728785372499,-500.0,0.00036399,15]
[340182169,1728785372522,-373.99014089,0.00036399,15]
[340182170,1728785372544,-374.70526343,0.00036399,15]
[340182171,1728785372571,-500.0,0.00036399,15]
[340182172,1728785372594,-500.0,0.00036399,15]
[340182173,1728785372616,-524.99999999,0.00036399,15]
[340182174,1728785372645,-500.0,0.00036399,15]
[340182175,1728785372671,-500.0,0.00036399,15]
[340182176,1728785372695,-302.42545213,0.000364,2]
[340182177,1728785372718,-453.63817819,0.0003675,4]
[340182178,1728785372742,-195.26311516,0.00036822,2]
[340182179,1728785372765,-560.0,0.00036887,2]
[340182180,1728785372789,-8677.47784234,0.00037086,2]
[340182181,1728785372815,-453.63817819,0.000371,4]
[340182182,1728785372838,-453.63817819,0.0003745,4]
[340182183,1728785372859,-151.36368219,0.000378,4]
[340182184,1728785372882,-560.0,0.00037818,2]
[340182185,1728785372905,-331.20114735,0.00038,2]